[Event "Titled Tuesday Blitz December 20 Early 2022"]
[White "Sargsyan, Sargis Vach."]
[Black "rasmussvane"]
[WhiteFideId "13310810"]
[WhiteElo "2314"]
[BlackElo "2949"]
[Result "0-1"]
[Round "01"]
[TimeControl "180+2"]
[Date "2022.12.20"]
[WhiteClock "0:00:06"]
[BlackClock "0:00:22"]

1. d4 {[%clk 0:02:59]}  d5 {[%clk 0:03:00]} 2. c4 {[%clk 0:02:58]}  e6 {[%clk 0:03:00]} 3. Nf3 {[%clk 0:02:56]}  Nf6 {[%clk 0:02:59]} 4. g3 {[%clk 0:02:56]}  Bb4+ {[%clk 0:02:52]} 5. Bd2 {[%clk 0:02:55]}  Bd6 {[%clk 0:02:52]} 6. Bg2 {[%clk 0:02:53]}  c6 {[%clk 0:02:52]} 7. Qc2 {[%clk 0:02:52]}  Nbd7 {[%clk 0:02:51]} 8. O-O {[%clk 0:02:51]}  O-O {[%clk 0:02:50]} 9. Bg5 {[%clk 0:02:47]}  h6 {[%clk 0:02:50]} 10. Bxf6 {[%clk 0:02:47]}  Nxf6 {[%clk 0:02:51]} 11. Nbd2 {[%clk 0:02:46]}  b6 {[%clk 0:02:51]} 12. e4 {[%clk 0:02:45]}  Be7 {[%clk 0:02:52]} 13. Rfd1 {[%clk 0:02:34]}  Bb7 {[%clk 0:02:52]} 14. e5 {[%clk 0:02:30]}  Nd7 {[%clk 0:02:52]} 15. cxd5 {[%clk 0:02:25]}  cxd5 {[%clk 0:02:53]} 16. Rac1 {[%clk 0:02:24]}  Rc8 {[%clk 0:02:48]} 17. Qa4 {[%clk 0:02:18]}  a6 {[%clk 0:02:48]} 18. h4 {[%clk 0:02:05]}  b5 {[%clk 0:02:43]} 19. Rxc8 {[%clk 0:01:49]}  Qxc8 {[%clk 0:02:41]} 20. Qb3 {[%clk 0:01:36]}  Nb6 {[%clk 0:02:40]} 21. Qd3 {[%clk 0:01:32]}  Nc4 {[%clk 0:02:27]} 22. Rc1 {[%clk 0:01:17]}  Qd7 {[%clk 0:02:27]} 23. b3 {[%clk 0:01:15]}  Na3 {[%clk 0:02:07]} 24. Nb1 {[%clk 0:01:00]}  Rc8 {[%clk 0:02:02]} 25. Rxc8+ {[%clk 0:00:57]}  Qxc8 {[%clk 0:02:03]} 26. Nxa3 {[%clk 0:00:51]}  Bxa3 {[%clk 0:02:04]} 27. Qd2 {[%clk 0:00:46]}  b4 {[%clk 0:01:48]} 28. Bf1 {[%clk 0:00:43]}  a5 {[%clk 0:01:48]} 29. Kg2 {[%clk 0:00:35]}  Qc6 {[%clk 0:01:32]} 30. Bd3 {[%clk 0:00:33]}  a4 {[%clk 0:01:25]} 31. g4 {[%clk 0:00:32]}  axb3 {[%clk 0:01:25]} 32. axb3 {[%clk 0:00:32]}  Qc1 {[%clk 0:01:04]} 33. Qxc1 {[%clk 0:00:27]}  Bxc1 {[%clk 0:01:05]} 34. Kf1 {[%clk 0:00:25]}  f6 {[%clk 0:01:00]} 35. Ke2 {[%clk 0:00:16]}  Kf7 {[%clk 0:01:00]} 36. h5 {[%clk 0:00:16]}  Ke7 {[%clk 0:00:57]} 37. Bb5 {[%clk 0:00:15]}  Bf4 {[%clk 0:00:55]} 38. Nh4 {[%clk 0:00:14]}  fxe5 {[%clk 0:00:52]} 39. Ng6+ {[%clk 0:00:13]}  Kf6 {[%clk 0:00:52]} 40. Nxf4 {[%clk 0:00:12]}  exf4 {[%clk 0:00:51]} 41. f3 {[%clk 0:00:11]}  e5 {[%clk 0:00:43]} 42. Kd3 {[%clk 0:00:08]}  e4+ {[%clk 0:00:39]} 43. Ke2 {[%clk 0:00:08]}  Kg5 {[%clk 0:00:37]} 44. Bd7 {[%clk 0:00:07]}  Ba6+ {[%clk 0:00:37]} 45. Ke1 {[%clk 0:00:07]}  Kh4 {[%clk 0:00:30]} 46. Be6 {[%clk 0:00:07]}  Kg3 {[%clk 0:00:24]} 47. Bxd5 {[%clk 0:00:05]}  exf3 {[%clk 0:00:25]} 48. Bc4 {[%clk 0:00:05]}  Bxc4 {[%clk 0:00:23]} 49. bxc4 {[%clk 0:00:05]}  f2+ {[%clk 0:00:22]} 50. Kf1 {[%clk 0:00:06]}  b3 {[%clk 0:00:22]} 0-1


[Site "https://www.chess.com"]

[Event "Titled Tuesday Blitz December 20 Early 2022"]
[White "Schattmann, Alfred"]
[Black "Aradhya, Garg"]
[WhiteFideId "4662377"]
[BlackFideId "25006746"]
[WhiteElo "1746"]
[BlackElo "2284"]
[Result "0-1"]
[Round "01"]
[TimeControl "180+2"]
[Date "2022.12.20"]
[WhiteClock "0:00:03"]
[BlackClock "0:00:25"]

1. c4 {[%clk 0:02:59]}  e5 {[%clk 0:02:58]} 2. Nc3 {[%clk 0:02:56]}  Nf6 {[%clk 0:02:58]} 3. Nf3 {[%clk 0:02:56]}  e4 {[%clk 0:02:57]} 4. Ng5 {[%clk 0:02:52]}  c6 {[%clk 0:02:57]} 5. Ngxe4 {[%clk 0:02:43]}  Nxe4 {[%clk 0:02:58]} 6. Nxe4 {[%clk 0:02:42]}  d5 {[%clk 0:02:57]} 7. cxd5 {[%clk 0:02:42]}  cxd5 {[%clk 0:02:53]} 8. Ng3 {[%clk 0:02:39]}  h5 {[%clk 0:02:53]} 9. e3 {[%clk 0:02:40]}  d4 {[%clk 0:02:39]} 10. Ne2 {[%clk 0:02:34]}  Nc6 {[%clk 0:02:38]} 11. Qa4 {[%clk 0:02:28]}  Bc5 {[%clk 0:02:34]} 12. b4 {[%clk 0:02:22]}  Bb6 {[%clk 0:02:34]} 13. b5 {[%clk 0:02:19]}  Ne5 {[%clk 0:02:22]} 14. Nxd4 {[%clk 0:02:17]}  O-O {[%clk 0:02:22]} 15. Bb2 {[%clk 0:02:14]}  h4 {[%clk 0:02:17]} 16. h3 {[%clk 0:02:13]}  Re8 {[%clk 0:02:08]} 17. Be2 {[%clk 0:02:12]}  Qg5 {[%clk 0:02:04]} 18. f4 {[%clk 0:02:07]}  Qxg2 {[%clk 0:02:03]} 19. O-O-O {[%clk 0:02:07]}  Bxd4 {[%clk 0:02:00]} 20. Qxd4 {[%clk 0:01:51]}  Bf5 {[%clk 0:01:46]} 21. fxe5 {[%clk 0:01:31]}  Rac8+ {[%clk 0:01:35]} 22. Bc3 {[%clk 0:01:30]}  Qxe2 {[%clk 0:01:34]} 23. e6 {[%clk 0:01:29]}  f6 {[%clk 0:01:32]} 24. Rhg1 {[%clk 0:01:20]}  Rxe6 {[%clk 0:01:31]} 25. a4 {[%clk 0:01:10]}  Qc4 {[%clk 0:01:18]} 26. Qxc4 {[%clk 0:00:53]}  Rxc4 {[%clk 0:01:17]} 27. Kb2 {[%clk 0:00:51]}  Bxh3 {[%clk 0:01:14]} 28. Kb3 {[%clk 0:00:42]}  Rg4 {[%clk 0:01:13]} 29. Rh1 {[%clk 0:00:37]}  Bg2 {[%clk 0:01:13]} 30. Rhg1 {[%clk 0:00:37]}  h3 {[%clk 0:01:13]} 31. Rxg2 {[%clk 0:00:33]}  hxg2 {[%clk 0:01:12]} 32. Rg1 {[%clk 0:00:33]}  a6 {[%clk 0:01:11]} 33. bxa6 {[%clk 0:00:29]}  Rb6+ {[%clk 0:01:10]} 34. Kc2 {[%clk 0:00:28]}  Rxa6 {[%clk 0:01:11]} 35. a5 {[%clk 0:00:28]}  Kf7 {[%clk 0:01:08]} 36. Kd3 {[%clk 0:00:28]}  b6 {[%clk 0:01:06]} 37. axb6 {[%clk 0:00:27]}  Rxb6 {[%clk 0:01:05]} 38. Ke2 {[%clk 0:00:26]}  Rb5 {[%clk 0:01:04]} 39. Kf3 {[%clk 0:00:27]}  Rbg5 {[%clk 0:01:05]} 40. d4 {[%clk 0:00:23]}  Ke6 {[%clk 0:01:04]} 41. Be1 {[%clk 0:00:19]}  Kd5 {[%clk 0:01:04]} 42. Bf2 {[%clk 0:00:19]}  f5 {[%clk 0:00:57]} 43. Be1 {[%clk 0:00:14]}  Rg6 {[%clk 0:00:57]} 44. Bf2 {[%clk 0:00:14]}  Kd6 {[%clk 0:00:39]} 45. Be1 {[%clk 0:00:14]}  Ke6 {[%clk 0:00:39]} 46. Bf2 {[%clk 0:00:14]}  Kd5 {[%clk 0:00:40]} 47. Be1 {[%clk 0:00:14]}  Kc4 {[%clk 0:00:40]} 48. Bf2 {[%clk 0:00:14]}  Kd3 {[%clk 0:00:40]} 49. d5 {[%clk 0:00:09]}  Rd6 {[%clk 0:00:38]} 50. Rd1+ {[%clk 0:00:09]}  Kc2 {[%clk 0:00:38]} 51. Ra1 {[%clk 0:00:06]}  Rxd5 {[%clk 0:00:38]} 52. Ra2+ {[%clk 0:00:07]}  Kb1 {[%clk 0:00:37]} 53. Ra7 {[%clk 0:00:05]}  g1=N+ {[%clk 0:00:34]} 54. Bxg1 {[%clk 0:00:06]}  Rxg1 {[%clk 0:00:34]} 55. Rb7+ {[%clk 0:00:05]}  Kc2 {[%clk 0:00:33]} 56. Rc7+ {[%clk 0:00:05]}  Kd3 {[%clk 0:00:34]} 57. Rf7 {[%clk 0:00:06]}  Re1 {[%clk 0:00:33]} 58. Kf2 {[%clk 0:00:05]}  Re2+ {[%clk 0:00:33]} 59. Kf1 {[%clk 0:00:06]}  g5 {[%clk 0:00:33]} 60. Rb7 {[%clk 0:00:05]}  Rxe3 {[%clk 0:00:32]} 61. Ra7 {[%clk 0:00:04]}  f4 {[%clk 0:00:32]} 62. Ra4 {[%clk 0:00:04]}  Rf3+ {[%clk 0:00:31]} 63. Kg2 {[%clk 0:00:04]}  Rg3+ {[%clk 0:00:32]} 64. Kf2 {[%clk 0:00:04]}  Rc5 {[%clk 0:00:30]} 65. Rb4 {[%clk 0:00:03]}  Rc2+ {[%clk 0:00:30]} 66. Kf1 {[%clk 0:00:03]}  Rf3+ {[%clk 0:00:25]} 67. Kg1 {[%clk 0:00:01]}  Re3 {[%clk 0:00:24]} 68. Rb3+ {[%clk 0:00:01]}  Kc4 {[%clk 0:00:24]} 69. Rxe3 {[%clk 0:00:02]}  fxe3 {[%clk 0:00:24]} 70. Kf1 {[%clk 0:00:03]}  Kd3 {[%clk 0:00:24]} 71. Ke1 {[%clk 0:00:03]}  Rc1# {[%clk 0:00:25]} 0-1


[Site "https://www.chess.com"]

[Event "Titled Tuesday Blitz December 20 Early 2022"]
[White "Sferra, Bob"]
[Black "Kotofeyca"]
[WhiteFideId "2007266"]
[WhiteElo "2263"]
[BlackElo "2372"]
[Result "1-0"]
[Round "01"]
[TimeControl "180+2"]
[Date "2022.12.20"]
[WhiteClock "0:02:05"]
[BlackClock "0:02:12"]

1. d4 {[%clk 0:02:55]}  d5 {[%clk 0:02:58]} 2. c4 {[%clk 0:02:56]}  c6 {[%clk 0:02:58]} 3. Nf3 {[%clk 0:02:56]}  Nf6 {[%clk 0:02:58]} 4. Qc2 {[%clk 0:02:54]}  Bg4 {[%clk 0:02:58]} 5. Ne5 {[%clk 0:02:54]}  Bh5 {[%clk 0:02:58]} 6. Nc3 {[%clk 0:02:51]}  e6 {[%clk 0:02:57]} 7. Bf4 {[%clk 0:02:50]}  Nbd7 {[%clk 0:02:57]} 8. e3 {[%clk 0:02:49]}  Nxe5 {[%clk 0:02:53]} 9. Bxe5 {[%clk 0:02:48]}  Bd6 {[%clk 0:02:52]} 10. Bxd6 {[%clk 0:02:48]}  Qxd6 {[%clk 0:02:53]} 11. Bd3 {[%clk 0:02:46]}  Bg6 {[%clk 0:02:48]} 12. cxd5 {[%clk 0:02:42]}  exd5 {[%clk 0:02:43]} 13. h3 {[%clk 0:02:36]}  Bxd3 {[%clk 0:02:28]} 14. Qxd3 {[%clk 0:02:37]}  O-O {[%clk 0:02:28]} 15. O-O {[%clk 0:02:35]}  Rfe8 {[%clk 0:02:23]} 16. Rab1 {[%clk 0:02:35]}  a5 {[%clk 0:02:22]} 17. Rfc1 {[%clk 0:02:34]}  Ne4 {[%clk 0:02:21]} 18. a3 {[%clk 0:02:26]}  f5 {[%clk 0:02:18]} 19. b4 {[%clk 0:02:15]}  axb4 {[%clk 0:02:18]} 20. axb4 {[%clk 0:02:16]}  Ra3 {[%clk 0:02:12]} 21. Nxe4 {[%clk 0:02:05]} 1-0


[Site "https://www.chess.com"]

[Event "Titled Tuesday Blitz December 20 Early 2022"]
[White "Shankland, Sam"]
[Black "Klose, Eli"]
[WhiteFideId "2004887"]
[BlackFideId "16242955"]
[WhiteElo "2711"]
[BlackElo "1519"]
[Result "1-0"]
[Round "01"]
[TimeControl "180+2"]
[Date "2022.12.20"]
[WhiteClock "0:01:05"]
[BlackClock "0:01:05"]

1. d4 {[%clk 0:03:00]}  Nf6 {[%clk 0:02:58]} 2. c4 {[%clk 0:02:58]}  c5 {[%clk 0:02:57]} 3. d5 {[%clk 0:02:57]}  b5 {[%clk 0:02:58]} 4. cxb5 {[%clk 0:02:57]}  a6 {[%clk 0:02:58]} 5. bxa6 {[%clk 0:02:58]}  Bxa6 {[%clk 0:02:58]} 6. Nc3 {[%clk 0:02:58]}  g6 {[%clk 0:02:59]} 7. e4 {[%clk 0:02:58]}  Bxf1 {[%clk 0:02:58]} 8. Kxf1 {[%clk 0:02:58]}  d6 {[%clk 0:02:59]} 9. g3 {[%clk 0:02:56]}  Bg7 {[%clk 0:02:59]} 10. Kg2 {[%clk 0:02:57]}  O-O {[%clk 0:02:59]} 11. Nf3 {[%clk 0:02:57]}  Nfd7 {[%clk 0:03:00]} 12. Bd2 {[%clk 0:02:52]}  Qb6 {[%clk 0:02:50]} 13. b3 {[%clk 0:02:42]}  Na6 {[%clk 0:02:43]} 14. Rb1 {[%clk 0:02:31]}  Nc7 {[%clk 0:02:26]} 15. a4 {[%clk 0:02:28]}  Na6 {[%clk 0:02:25]} 16. Qe2 {[%clk 0:02:19]}  Rfc8 {[%clk 0:02:24]} 17. Nb5 {[%clk 0:02:16]}  Nc7 {[%clk 0:02:18]} 18. Na3 {[%clk 0:02:15]}  Rcb8 {[%clk 0:02:12]} 19. Rhc1 {[%clk 0:02:08]}  Qa6 {[%clk 0:02:10]} 20. Qxa6 {[%clk 0:02:07]}  Rxa6 {[%clk 0:02:09]} 21. a5 {[%clk 0:01:58]}  Nb5 {[%clk 0:01:53]} 22. Nc4 {[%clk 0:01:49]}  Nd4 {[%clk 0:01:45]} 23. Nxd4 {[%clk 0:01:48]}  Bxd4 {[%clk 0:01:46]} 24. b4 {[%clk 0:01:37]}  cxb4 {[%clk 0:01:39]} 25. Rxb4 {[%clk 0:01:37]}  Rxb4 {[%clk 0:01:38]} 26. Bxb4 {[%clk 0:01:37]}  f5 {[%clk 0:01:39]} 27. f3 {[%clk 0:01:22]}  Nf6 {[%clk 0:01:37]} 28. Re1 {[%clk 0:01:18]}  Ra7 {[%clk 0:01:25]} 29. Rd1 {[%clk 0:01:15]}  Bc5 {[%clk 0:01:17]} 30. Bxc5 {[%clk 0:01:14]}  dxc5 {[%clk 0:01:17]} 31. e5 {[%clk 0:01:14]}  Nd7 {[%clk 0:01:17]} 32. Rb1 {[%clk 0:01:08]}  Kf8 {[%clk 0:01:17]} 33. f4 {[%clk 0:01:08]}  h6 {[%clk 0:01:16]} 34. h4 {[%clk 0:01:07]}  Ke8 {[%clk 0:01:11]} 35. e6 {[%clk 0:01:06]}  Kd8 {[%clk 0:01:04]} 36. exd7 {[%clk 0:01:06]}  Kxd7 {[%clk 0:01:05]} 37. Kf3 {[%clk 0:01:06]}  Rb7 {[%clk 0:01:05]} 38. Rxb7+ {[%clk 0:01:05]} 1-0


[Site "https://www.chess.com"]

[Event "Titled Tuesday Blitz December 20 Early 2022"]
[White "ShiroglanTalibov"]
[Black "Sapon, Ilia"]
[BlackFideId "13504746"]
[WhiteElo "2726"]
[BlackElo "2074"]
[Result "0-1"]
[Round "01"]
[TimeControl "180+2"]
[Date "2022.12.20"]
[WhiteClock "0:00:01"]
[BlackClock "0:00:08"]

1. Nf3 {[%clk 0:02:58]}  Nf6 {[%clk 0:02:59]} 2. d4 {[%clk 0:02:57]}  e6 {[%clk 0:02:59]} 3. Bf4 {[%clk 0:02:52]}  d6 {[%clk 0:02:46]} 4. c4 {[%clk 0:02:42]}  g6 {[%clk 0:02:45]} 5. Nc3 {[%clk 0:02:42]}  Bg7 {[%clk 0:02:45]} 6. e3 {[%clk 0:02:37]}  O-O {[%clk 0:02:45]} 7. Be2 {[%clk 0:02:37]}  b6 {[%clk 0:02:44]} 8. O-O {[%clk 0:02:37]}  Bb7 {[%clk 0:02:44]} 9. b4 {[%clk 0:02:36]}  Nbd7 {[%clk 0:02:41]} 10. h3 {[%clk 0:02:36]}  Qe7 {[%clk 0:02:36]} 11. Bg3 {[%clk 0:02:35]}  a5 {[%clk 0:02:31]} 12. a3 {[%clk 0:02:35]}  h6 {[%clk 0:02:27]} 13. Qb3 {[%clk 0:02:32]}  g5 {[%clk 0:02:17]} 14. Nd2 {[%clk 0:02:30]}  e5 {[%clk 0:01:55]} 15. Rfe1 {[%clk 0:02:24]}  Rfe8 {[%clk 0:01:36]} 16. Bf3 {[%clk 0:02:22]}  Bxf3 {[%clk 0:01:26]} 17. Nxf3 {[%clk 0:02:23]}  e4 {[%clk 0:01:26]} 18. Nd2 {[%clk 0:02:22]}  Nf8 {[%clk 0:01:18]} 19. Rac1 {[%clk 0:02:06]}  Ng6 {[%clk 0:01:18]} 20. Nb5 {[%clk 0:02:05]}  Qd7 {[%clk 0:01:03]} 21. a4 {[%clk 0:02:00]}  axb4 {[%clk 0:01:01]} 22. Qxb4 {[%clk 0:02:00]}  h5 {[%clk 0:01:01]} 23. c5 {[%clk 0:01:59]}  h4 {[%clk 0:00:48]} 24. Bh2 {[%clk 0:01:59]}  g4 {[%clk 0:00:36]} 25. Kh1 {[%clk 0:01:17]}  gxh3 {[%clk 0:00:26]} 26. gxh3 {[%clk 0:01:18]}  Qxh3 {[%clk 0:00:24]} 27. Rg1 {[%clk 0:01:19]}  bxc5 {[%clk 0:00:17]} 28. dxc5 {[%clk 0:01:18]}  Ng4 {[%clk 0:00:16]} 29. Rxg4 {[%clk 0:01:08]}  Qxg4 {[%clk 0:00:17]} 30. Nxc7 {[%clk 0:01:08]}  Rab8 {[%clk 0:00:16]} 31. Qc4 {[%clk 0:01:01]}  Be5 {[%clk 0:00:13]} 32. Qxe4 {[%clk 0:00:32]}  Qh3 {[%clk 0:00:11]} 33. Qg2 {[%clk 0:00:32]}  Qxg2+ {[%clk 0:00:07]} 34. Kxg2 {[%clk 0:00:33]}  Rec8 {[%clk 0:00:07]} 35. cxd6 {[%clk 0:00:30]}  Bxh2 {[%clk 0:00:06]} 36. Kxh2 {[%clk 0:00:30]}  Nf8 {[%clk 0:00:06]} 37. Ne4 {[%clk 0:00:29]}  Rb4 {[%clk 0:00:05]} 38. Rg1+ {[%clk 0:00:26]}  Kh8 {[%clk 0:00:04]} 39. Nf6 {[%clk 0:00:26]}  Ng6 {[%clk 0:00:05]} 40. a5 {[%clk 0:00:22]}  Rd8 {[%clk 0:00:03]} 41. d7 {[%clk 0:00:20]}  Rb2 {[%clk 0:00:01]} 42. Kg2 {[%clk 0:00:19]}  Ra2 {[%clk 0:00:02]} 43. a6 {[%clk 0:00:18]}  Kg7 {[%clk 0:00:03]} 44. Nce8+ {[%clk 0:00:14]}  Kf8 {[%clk 0:00:03]} 45. Rc1 {[%clk 0:00:14]}  Rxa6 {[%clk 0:00:03]} 46. Rc8 {[%clk 0:00:14]}  Ke7 {[%clk 0:00:04]} 47. Rc7 {[%clk 0:00:05]}  Raa8 {[%clk 0:00:05]} 48. Ng8+ {[%clk 0:00:04]}  Kf8 {[%clk 0:00:05]} 49. Ngf6 {[%clk 0:00:05]}  Ke7 {[%clk 0:00:05]} 50. Ng8+ {[%clk 0:00:05]}  Ke6 {[%clk 0:00:06]} 51. Ngf6 {[%clk 0:00:04]}  Ne5 {[%clk 0:00:07]} 52. Rc5 {[%clk 0:00:04]}  Nxd7 {[%clk 0:00:08]} 53. Rc7 {[%clk 0:00:04]}  Nxf6 {[%clk 0:00:08]} 54. Ng7+ {[%clk 0:00:03]}  Kd6 {[%clk 0:00:08]} 55. Rxf7 {[%clk 0:00:03]}  Nd5 {[%clk 0:00:09]} 56. Nf5+ {[%clk 0:00:03]}  Kc5 {[%clk 0:00:09]} 57. e4 {[%clk 0:00:03]}  Nf4+ {[%clk 0:00:09]} 58. Kf3 {[%clk 0:00:02]}  Nd3 {[%clk 0:00:10]} 59. Rc7+ {[%clk 0:00:02]}  Kb4 {[%clk 0:00:10]} 60. Rb7+ {[%clk 0:00:02]}  Kc3 {[%clk 0:00:11]} 61. Ke3 {[%clk 0:00:03]}  Nc5 {[%clk 0:00:09]} 62. Rb5 {[%clk 0:00:03]}  Nb3 {[%clk 0:00:09]} 63. e5 {[%clk 0:00:02]}  Rab8 {[%clk 0:00:06]} 64. Rxb8 {[%clk 0:00:01]}  Rxb8 {[%clk 0:00:06]} 65. Ke4 {[%clk 0:00:02]}  Nc5+ {[%clk 0:00:07]} 66. Kd5 {[%clk 0:00:03]}  Nd3 {[%clk 0:00:07]} 67. e6 {[%clk 0:00:03]}  Nf4+ {[%clk 0:00:08]} 68. Ke5 {[%clk 0:00:03]}  Nxe6 {[%clk 0:00:08]} 69. Kxe6 {[%clk 0:00:04]}  h3 {[%clk 0:00:09]} 70. Ng3 {[%clk 0:00:05]}  Rg8 {[%clk 0:00:09]} 71. Nf1 {[%clk 0:00:02]}  Rg1 {[%clk 0:00:09]} 72. Nh2 {[%clk 0:00:01]}  Rg2 {[%clk 0:00:08]} 0-1


[Site "https://www.chess.com"]

[Event "Titled Tuesday Blitz December 20 Early 2022"]
[White "Sokolov, Ivan"]
[Black "Aranos Garcia, Ricardo"]
[WhiteFideId "14400030"]
[BlackFideId "32028040"]
[WhiteElo "2590"]
[BlackElo "1971"]
[Result "1-0"]
[Round "01"]
[TimeControl "180+2"]
[Date "2022.12.20"]
[WhiteClock "0:01:23"]
[BlackClock "0:00:53"]

1. b3 {[%clk 0:02:59]}  e5 {[%clk 0:02:58]} 2. Bb2 {[%clk 0:03:00]}  Nc6 {[%clk 0:02:59]} 3. e3 {[%clk 0:02:59]}  a6 {[%clk 0:02:58]} 4. Nf3 {[%clk 0:02:54]}  e4 {[%clk 0:02:45]} 5. Nd4 {[%clk 0:02:55]}  Nxd4 {[%clk 0:02:44]} 6. Bxd4 {[%clk 0:02:56]}  c5 {[%clk 0:02:43]} 7. Bb2 {[%clk 0:02:55]}  d5 {[%clk 0:02:43]} 8. c4 {[%clk 0:02:54]}  d4 {[%clk 0:02:39]} 9. g3 {[%clk 0:02:00]}  Nf6 {[%clk 0:02:35]} 10. Bg2 {[%clk 0:02:00]}  Bg4 {[%clk 0:02:29]} 11. f3 {[%clk 0:01:59]}  exf3 {[%clk 0:02:11]} 12. Bxf3 {[%clk 0:02:00]}  Bf5 {[%clk 0:02:04]} 13. O-O {[%clk 0:01:58]}  Qd7 {[%clk 0:01:54]} 14. Bxb7 {[%clk 0:01:53]}  Qxb7 {[%clk 0:01:46]} 15. Rxf5 {[%clk 0:01:53]}  dxe3 {[%clk 0:01:46]} 16. Bxf6 {[%clk 0:01:37]}  gxf6 {[%clk 0:01:41]} 17. Nc3 {[%clk 0:01:38]}  Rd8 {[%clk 0:01:33]} 18. Nd5 {[%clk 0:01:37]}  Rxd5 {[%clk 0:01:29]} 19. Rxd5 {[%clk 0:01:36]}  Qe7 {[%clk 0:01:13]} 20. Qg4 {[%clk 0:01:28]}  Qe6 {[%clk 0:00:53]} 21. Qf4 {[%clk 0:01:23]} 1-0


[Site "https://www.chess.com"]

[Event "Titled Tuesday Blitz December 20 Early 2022"]
[White "Susal_De_Silva"]
[Black "Kazgildy, Fariza"]
[BlackFideId "13724860"]
[WhiteElo "2808"]
[BlackElo "1189"]
[Result "0-1"]
[Round "01"]
[TimeControl "180+2"]
[Date "2022.12.20"]
[WhiteClock "0:00:40"]
[BlackClock "0:00:49"]

1. Nf3 {[%clk 0:02:54]}  d5 {[%clk 0:02:59]} 2. e3 {[%clk 0:02:46]}  Nf6 {[%clk 0:02:59]} 3. c4 {[%clk 0:02:45]}  e6 {[%clk 0:02:58]} 4. b3 {[%clk 0:02:43]}  Be7 {[%clk 0:02:57]} 5. Bb2 {[%clk 0:02:44]}  O-O {[%clk 0:02:58]} 6. Be2 {[%clk 0:02:40]}  b6 {[%clk 0:02:57]} 7. Nc3 {[%clk 0:02:40]}  Bb7 {[%clk 0:02:57]} 8. O-O {[%clk 0:02:39]}  dxc4 {[%clk 0:02:57]} 9. Bxc4 {[%clk 0:02:39]}  Nbd7 {[%clk 0:02:56]} 10. d4 {[%clk 0:02:39]}  c5 {[%clk 0:02:55]} 11. Rc1 {[%clk 0:02:39]}  Rc8 {[%clk 0:02:54]} 12. d5 {[%clk 0:02:38]}  exd5 {[%clk 0:02:52]} 13. Nxd5 {[%clk 0:02:38]}  Nxd5 {[%clk 0:02:49]} 14. Bxd5 {[%clk 0:02:39]}  Bxd5 {[%clk 0:02:49]} 15. Qxd5 {[%clk 0:02:40]}  Nf6 {[%clk 0:02:50]} 16. Qg5 {[%clk 0:02:39]}  h6 {[%clk 0:02:41]} 17. Qg3 {[%clk 0:02:38]}  Qc7 {[%clk 0:02:19]} 18. Be5 {[%clk 0:02:35]}  Qc6 {[%clk 0:02:17]} 19. Rfd1 {[%clk 0:02:33]}  Rfd8 {[%clk 0:02:15]} 20. h3 {[%clk 0:01:48]}  Qe4 {[%clk 0:02:02]} 21. Rxd8+ {[%clk 0:01:44]}  Rxd8 {[%clk 0:02:02]} 22. Rc4 {[%clk 0:01:45]}  Rd1+ {[%clk 0:01:58]} 23. Kh2 {[%clk 0:01:44]}  Qb1 {[%clk 0:01:56]} 24. Qh4 {[%clk 0:01:21]}  Rh1+ {[%clk 0:01:39]} 25. Kg3 {[%clk 0:01:20]}  Qg6+ {[%clk 0:01:40]} 26. Rg4 {[%clk 0:01:06]}  Nh5+ {[%clk 0:01:20]} 27. Qxh5 {[%clk 0:01:06]}  Qxh5 {[%clk 0:01:21]} 28. Rxg7+ {[%clk 0:01:04]}  Kf8 {[%clk 0:01:21]} 29. Rg4 {[%clk 0:00:58]}  f5 {[%clk 0:01:16]} 30. Rg7 {[%clk 0:00:52]}  f4+ {[%clk 0:01:02]} 31. exf4 {[%clk 0:00:44]}  Qxe5 {[%clk 0:00:54]} 32. Nxe5 {[%clk 0:00:43]}  Kxg7 {[%clk 0:00:54]} 33. f5 {[%clk 0:00:42]}  Ra1 {[%clk 0:00:53]} 34. Ng6 {[%clk 0:00:42]}  Bf6 {[%clk 0:00:53]} 35. f4 {[%clk 0:00:42]}  Rxa2 {[%clk 0:00:53]} 36. Kf3 {[%clk 0:00:43]}  Rb2 {[%clk 0:00:53]} 37. g4 {[%clk 0:00:44]}  Rxb3+ {[%clk 0:00:54]} 38. Kg2 {[%clk 0:00:45]}  Rd3 {[%clk 0:00:53]} 39. h4 {[%clk 0:00:45]}  c4 {[%clk 0:00:51]} 40. g5 {[%clk 0:00:46]}  hxg5 {[%clk 0:00:52]} 41. hxg5 {[%clk 0:00:46]}  Bd4 {[%clk 0:00:51]} 42. Ne5 {[%clk 0:00:40]}  Bxe5 {[%clk 0:00:51]} 43. fxe5 {[%clk 0:00:41]}  c3 {[%clk 0:00:51]} 44. e6 {[%clk 0:00:42]}  c2 {[%clk 0:00:51]} 45. f6+ {[%clk 0:00:43]}  Kg6 {[%clk 0:00:48]} 46. e7 {[%clk 0:00:41]}  Re3 {[%clk 0:00:49]} 47. Kf2 {[%clk 0:00:40]}  Re6 {[%clk 0:00:49]} 0-1


[Site "https://www.chess.com"]

[Event "Titled Tuesday Blitz December 20 Early 2022"]
[White "Szpar, Milosz"]
[Black "The_filthy"]
[WhiteFideId "1184989"]
[WhiteElo "2447"]
[BlackElo "2377"]
[Result "1-0"]
[Round "01"]
[TimeControl "180+2"]
[Date "2022.12.20"]
[WhiteClock "0:00:39"]
[BlackClock "0:00:50"]

1. e4 {[%clk 0:03:00]}  e6 {[%clk 0:02:58]} 2. d4 {[%clk 0:02:58]}  d5 {[%clk 0:02:58]} 3. Nc3 {[%clk 0:02:57]}  Bb4 {[%clk 0:02:57]} 4. e5 {[%clk 0:02:55]}  Ne7 {[%clk 0:02:55]} 5. h4 {[%clk 0:02:51]}  c5 {[%clk 0:02:49]} 6. a3 {[%clk 0:02:51]}  Bxc3+ {[%clk 0:02:48]} 7. bxc3 {[%clk 0:02:51]}  Qa5 {[%clk 0:02:48]} 8. Bd2 {[%clk 0:02:50]}  c4 {[%clk 0:02:47]} 9. h5 {[%clk 0:02:46]}  h6 {[%clk 0:02:46]} 10. Qg4 {[%clk 0:02:44]}  Nf5 {[%clk 0:02:44]} 11. Ne2 {[%clk 0:02:44]}  Qa4 {[%clk 0:02:40]} 12. Ra2 {[%clk 0:02:41]}  Nc6 {[%clk 0:02:36]} 13. Rh3 {[%clk 0:02:29]}  Bd7 {[%clk 0:02:34]} 14. Rf3 {[%clk 0:02:28]}  Nce7 {[%clk 0:02:34]} 15. Qh3 {[%clk 0:02:13]}  Nc6 {[%clk 0:02:24]} 16. g4 {[%clk 0:02:02]}  Nfe7 {[%clk 0:02:23]} 17. Qg3 {[%clk 0:01:49]}  Rf8 {[%clk 0:02:19]} 18. Bh3 {[%clk 0:01:48]}  O-O-O {[%clk 0:02:16]} 19. g5 {[%clk 0:01:47]}  hxg5 {[%clk 0:02:09]} 20. Qxg5 {[%clk 0:01:47]}  Qb5 {[%clk 0:02:02]} 21. Ra1 {[%clk 0:01:10]}  Qb2 {[%clk 0:01:59]} 22. Rc1 {[%clk 0:01:10]}  Qxa3 {[%clk 0:01:57]} 23. Qxg7 {[%clk 0:01:10]}  Nf5 {[%clk 0:01:46]} 24. Bxf5 {[%clk 0:01:10]}  exf5 {[%clk 0:01:47]} 25. h6 {[%clk 0:01:07]}  Be6 {[%clk 0:01:45]} 26. h7 {[%clk 0:01:04]}  Rh8 {[%clk 0:01:35]} 27. Bg5 {[%clk 0:01:02]}  Rde8 {[%clk 0:01:25]} 28. Kd2 {[%clk 0:00:53]}  Ne7 {[%clk 0:01:18]} 29. Bf6 {[%clk 0:00:48]}  Ng6 {[%clk 0:01:19]} 30. Nf4 {[%clk 0:00:47]}  Nxf4 {[%clk 0:01:01]} 31. Rxf4 {[%clk 0:00:48]}  b5 {[%clk 0:00:58]} 32. Rb1 {[%clk 0:00:42]}  a6 {[%clk 0:00:50]} 33. Qxh8 {[%clk 0:00:38]}  Rxh8 {[%clk 0:00:50]} 34. Bxh8 {[%clk 0:00:39]} 1-0


[Site "https://www.chess.com"]